[Event "FINAL CAMPEONATO ABSOLUTO DE AJEDREZ CHILE 2018"]
[Site "CENTRO CULTURAL LO PRADO, Chile"]
[Date "2018.03.02"]
[Round "10.3"]
[White "LOPEZ SILVA, Hugo Andres"]
[Black "AGUIRRE CONTRERAS, Cristian Ro"]
[Result "1-0"]
[TimeControl "90 minutos mas 30 segundos de incremento por movida"]
[BlackTitle "FM"]
[WhiteElo "2389"]
[BlackElo "2272"]

1. e4 {[%clk 01:18:50]} {[%emt 00:12:09]} c6 {[%emt 00:01:15]} 2. d4 {[%clk
01:17:26]} {[%emt 00:00:53]} g6 {[%clk 01:31:07]} {[%emt 00:00:09]} 3. Nc3
{[%clk 01:17:26]} {[%emt 00:00:31]} Bg7 {[%clk 01:31:23]} {[%emt 00:00:14]} 4.
Nf3 {[%clk 01:17:44]} {[%emt 00:00:11]} d5 {[%clk 01:31:44]} {[%emt 00:00:10]}
5. h3 {[%clk 01:18:11]} {[%emt 00:00:03]} Nf6 {[%clk 01:32:10]} {[%emt
00:00:05]} 6. Bd3 {[%clk 01:18:31]} {[%emt 00:00:09]} dxe4 {[%clk 01:32:30]}
{[%emt 00:00:10]} 7. Nxe4 {[%clk 01:18:59]} {[%emt 00:00:03]} Nxe4 {[%clk
01:30:55]} {[%emt 00:02:05]} 8. Bxe4 {[%clk 01:19:26]} {[%emt 00:00:02]} Nd7
{[%clk 01:31:16]} {[%emt 00:00:10]} 9. O-O {[%clk 01:19:53]} {[%emt 00:00:03]}
O-O {[%clk 01:31:36]} {[%emt 00:00:09]} 10. Re1 {[%clk 01:18:44]} {[%emt
00:01:39]} Nf6 {[%clk 01:31:27]} {[%emt 00:00:40]} 11. Bd3 {[%clk 01:19:12]}
{[%emt 00:00:02]} Qd6 {[%clk 01:31:02]} {[%emt 00:00:55]} 12. Bg5 {[%clk
01:12:40]} {[%emt 00:07:02]} a5 {[%clk 01:31:22]} {[%emt 00:00:10]} 13. a4
{[%clk 01:12:56]} {[%emt 00:00:14]} Be6 {[%clk 01:31:32]} {[%emt 00:00:19]} 14.
Qd2 {[%clk 01:07:34]} {[%emt 00:05:52]} Nd5 {[%clk 01:28:06]} {[%emt 00:03:56]}
15. c3 {[%clk 01:06:18]} {[%emt 00:01:46]} Rfe8 {[%clk 01:28:09]} {[%emt
00:00:27]} 16. Bh6 {[%clk 00:58:52]} {[%emt 00:07:56]} Rad8 {[%clk 01:26:53]}
{[%emt 00:01:46]} 17. Ne5 {[%clk 00:47:28]} {[%emt 00:11:54]} Bc8 {[%clk
00:59:33]} {[%emt 00:27:50]} 18. Bc4 {[%clk 00:40:46]} {[%emt 00:07:12]} Be6
{[%clk 00:52:26]} {[%emt 00:07:37]} 19. Re2 {[%clk 00:35:40]} {[%emt 00:05:36]}
f6 {[%clk 00:45:00]} {[%emt 00:07:57]} 20. Nd3 {[%clk 00:34:11]} {[%emt
00:01:58]} Bf7 {[%clk 00:45:18]} {[%emt 00:00:12]} 21. Rae1 {[%clk 00:33:41]}
{[%emt 00:01:00]} b6 {[%clk 00:44:03]} {[%emt 00:01:45]} 22. Re4 {[%clk
00:23:47]} {[%emt 00:10:24]} Bh8 {[%clk 00:40:28]} {[%emt 00:04:05]} 23. Qd1
{[%clk 00:20:41]} {[%emt 00:03:34]} Rd7 {[%clk 00:40:34]} {[%emt 00:00:27]} 24.
Bf4 {[%clk 00:13:21]} {[%emt 00:07:50]} Nxf4 {[%clk 00:34:11]} {[%emt
00:06:53]} 25. Bxf7+ {[%clk 00:12:16]} {[%emt 00:01:35]} Kxf7 {[%clk 00:34:34]}
{[%emt 00:00:08]} 26. Nxf4 {[%clk 00:12:26]} {[%emt 00:00:20]} e5 {[%clk
00:34:53]} {[%emt 00:00:11]} 27. Qb3+ {[%clk 00:09:12]} {[%emt 00:03:43]} Kf8
{[%clk 00:35:11]} {[%emt 00:00:13]} 28. dxe5 {[%clk 00:05:50]} {[%emt
00:03:52]} fxe5 {[%clk 00:34:44]} {[%emt 00:00:57]} 29. Ne2 {[%clk 00:04:06]}
{[%emt 00:02:14]} Qd5 {[%clk 00:34:43]} {[%emt 00:00:31]} 30. Qa3+ {[%clk
00:03:06]} {[%emt 00:01:31]} Kg8 {[%clk 00:33:49]} {[%emt 00:01:23]} 31. Nd4
{[%clk 00:01:51]} {[%emt 00:01:46]} c5 {[%clk 00:29:26]} {[%emt 00:04:52]} 32.
Nf3 {[%clk 00:01:21]} {[%emt 00:00:59]} Rde7 {[%clk 00:29:44]} {[%emt
00:00:12]} 33. R1e2 {[%clk 00:01:08]} {[%emt 00:00:44]} Bg7 {[%clk 00:30:01]}
{[%emt 00:00:13]} 34. Nd2 {[%clk 00:00:36]} {[%emt 00:01:02]} Re6 {[%clk
00:29:01]} {[%emt 00:01:30]} 35. Nc4 {[%clk 00:00:54]} {[%emt 00:00:13]} Rf8
{[%clk 00:28:36]} {[%emt 00:00:55]} 36. Qb3 {[%clk 00:01:16]} {[%emt 00:00:07]}
Rf4 {[%clk 00:18:30]} {[%emt 00:10:36]} 37. Rxf4 {[%clk 00:00:55]} {[%emt
00:00:51]} exf4 {[%clk 00:18:40]} {[%emt 00:00:20]} 38. Rxe6 {[%clk 00:01:20]}
{[%emt 00:00:06]} Qxe6 {[%clk 00:19:03]} {[%emt 00:00:06]} 39. Nxa5 {[%clk
00:01:46]} {[%emt 00:00:04]} Kf7 {[%clk 00:19:12]} {[%emt 00:00:21]} 40. Qxe6+
{[%clk 00:02:06]} {[%emt 00:00:11]} Kxe6 {[%clk 00:19:34]} {[%emt 00:00:08]} 41.
Nc4 {[%clk 00:02:35]} b5 {[%clk 00:19:13]} {[%emt 00:00:51]} 42. axb5 {[%clk
00:02:15]} {[%emt 00:00:51]} Kd5 {[%clk 00:19:34]} {[%emt 00:00:10]} 43. Nb6+
{[%clk 00:01:53]} {[%emt 00:00:51]} Ke4 {[%clk 00:17:15]} {[%emt 00:02:49]} 44.
f3+ {[%clk 00:01:45]} {[%emt 00:00:39]} Ke5 {[%clk 00:13:31]} {[%emt 00:04:14]}
45. Kf1 {[%clk 00:02:03]} {[%emt 00:00:11]} Kd6 {[%clk 00:13:49]} {[%emt
00:00:12]} 46. Ke2 {[%clk 00:02:27]} {[%emt 00:00:06]} Bf6 {[%clk 00:14:14]}
{[%emt 00:00:05]} 47. Kd3 {[%clk 00:01:39]} {[%emt 00:01:17]} Bd8 {[%clk
00:14:36]} {[%emt 00:00:08]} 48. Na4 {[%clk 00:01:02]} {[%emt 00:01:07]} Kd5
{[%clk 00:14:58]} {[%emt 00:00:09]} 49. c4+ {[%clk 00:01:16]} {[%emt 00:00:17]}
Kd6 {[%clk 00:15:12]} {[%emt 00:00:16]} 50. Ke4 {[%clk 00:01:03]} {[%emt
00:00:43]} g5 {[%clk 00:15:39]} {[%emt 00:00:02]} 51. Kf5 {[%clk 00:01:17]}
{[%emt 00:00:16]} h6 {[%clk 00:16:03]} {[%emt 00:00:07]} 52. Nc3 {[%clk
00:01:45]} {[%emt 00:00:02]} 1-0

[Event "FINAL CAMPEONATO ABSOLUTO DE AJEDREZ CHILE 2018"]
[Site "CENTRO CULTURAL LO PRADO, Chile"]
[Date "2018.03.02"]
[Round "10.4"]
[White "PEREZ GORMAZ, Matias"]
[Black "FUENTES PARRA, Victor Ignacio"]
[Result "1-0"]
[TimeControl "90 minutos mas 30 segundos de incremento por movida"]
[WhiteTitle "FM"]
[WhiteElo "2410"]
[BlackElo "2148"]

1. Nf3 {[%clk 01:18:41]} {[%emt 00:12:15]} f5 {[%clk 01:30:46]} {[%emt
00:00:16]} 2. g3 {[%clk 01:18:34]} {[%emt 00:00:36]} Nf6 {[%clk 01:31:11]}
{[%emt 00:00:05]} 3. Bg2 {[%clk 01:18:57]} {[%emt 00:00:06]} e6 {[%clk
01:30:35]} {[%emt 00:01:07]} 4. O-O {[%clk 01:19:19]} {[%emt 00:00:07]} Be7
{[%clk 01:30:54]} {[%emt 00:00:12]} 5. c4 {[%clk 01:18:41]} {[%emt 00:01:08]}
O-O {[%clk 01:31:11]} {[%emt 00:00:13]} 6. b3 {[%clk 01:12:56]} {[%emt
00:06:15]} d5 {[%clk 01:29:45]} {[%emt 00:01:57]} 7. Bb2 {[%clk 01:11:24]}
{[%emt 00:02:01]} c5 {[%clk 01:30:10]} {[%emt 00:00:05]} 8. cxd5 {[%clk
01:11:10]} {[%emt 00:00:44]} exd5 {[%clk 01:23:44]} {[%emt 00:06:56]} 9. d4
{[%clk 01:11:00]} {[%emt 00:00:39]} b6 {[%clk 01:23:42]} {[%emt 00:00:32]} 10.
Nc3 {[%clk 01:10:21]} {[%emt 00:01:08]} Bb7 {[%clk 01:23:40]} {[%emt 00:00:33]}
11. e3 {[%clk 00:57:46]} {[%emt 00:13:05]} Ne4 {[%clk 01:20:01]} {[%emt
00:04:09]} 12. Ne2 {[%clk 00:50:47]} {[%emt 00:07:28]} c4 {[%clk 01:12:13]}
{[%emt 00:08:19]} 13. Rc1 {[%clk 00:33:50]} {[%emt 00:17:27]} b5 {[%clk
01:10:47]} {[%emt 00:01:56]} 14. Nf4 {[%clk 00:34:14]} {[%emt 00:00:05]} Qa5
{[%clk 01:03:23]} {[%emt 00:07:55]} 15. bxc4 {[%clk 00:27:49]} {[%emt
00:06:55]} dxc4 {[%clk 00:55:50]} {[%emt 00:08:02]} 16. a4 {[%clk 00:24:47]}
{[%emt 00:03:32]} Qb4 {[%clk 00:48:13]} {[%emt 00:08:08]} 17. Ba1 {[%clk
00:23:28]} {[%emt 00:01:49]} a6 {[%clk 00:41:14]} {[%emt 00:07:30]} 18. Ne5
{[%clk 00:22:48]} {[%emt 00:01:09]} Nc6 {[%clk 00:35:41]} {[%emt 00:06:04]} 19.
Rb1 {[%clk 00:22:11]} {[%emt 00:01:07]} Qd6 {[%clk 00:18:12]} {[%emt 00:17:59]}
20. Nxc4 {[%clk 00:22:14]} {[%emt 00:00:26]} bxc4 {[%clk 00:18:40]} {[%emt
00:00:03]} 21. Rxb7 {[%clk 00:22:35]} {[%emt 00:00:08]} Na5 {[%clk 00:17:45]}
{[%emt 00:01:25]} 22. Rb1 {[%clk 00:22:24]} {[%emt 00:00:41]} Bg5 {[%clk
00:08:41]} {[%emt 00:09:34]} 23. Qc2 {[%clk 00:17:05]} {[%emt 00:05:49]} Rfe8
{[%clk 00:06:09]} {[%emt 00:03:02]} 24. Rfe1 {[%clk 00:10:50]} {[%emt
00:06:44]} Rac8 {[%clk 00:06:04]} {[%emt 00:00:35]} 25. f3 {[%clk 00:09:26]}
{[%emt 00:01:54]} Bxf4 {[%clk 00:06:00]} {[%emt 00:00:34]} 26. fxe4 {[%clk
00:09:03]} {[%emt 00:00:53]} Bh6 {[%clk 00:04:45]} {[%emt 00:01:45]} 27. e5
{[%clk 00:09:21]} {[%emt 00:00:11]} Qa3 {[%emt 00:00:37]} 28. Bc3 {[%clk
00:08:02]} {[%emt 00:01:48]} Nb3 {[%clk 00:05:04]} {[%emt 00:00:05]} 29. Qxf5
{[%clk 00:06:56]} {[%emt 00:01:35]} Qxa4 {[%clk 00:03:42]} {[%emt 00:01:52]} 30.
Bd5+ {[%clk 00:05:20]} {[%emt 00:02:06]} Kh8 {[%clk 00:04:11]} 31. Be4 {[%clk
00:05:41]} {[%emt 00:00:09]} g6 {[%clk 00:04:11]} {[%emt 00:00:31]} 32. Qh3
{[%clk 00:06:06]} {[%emt 00:00:05]} Kg7 {[%clk 00:03:25]} {[%emt 00:01:16]} 33.
d5 {[%clk 00:06:01]} {[%emt 00:00:35]} Bg5 {[%clk 00:03:18]} {[%emt 00:00:37]}
34. e6+ {[%clk 00:06:16]} {[%emt 00:00:15]} Bf6 {[%clk 00:02:44]} {[%emt
00:01:04]} 35. Bxf6+ {[%clk 00:04:13]} {[%emt 00:02:33]} Kxf6 {[%clk 00:03:13]}
{[%emt 00:00:02]} 36. Qxh7 {[%clk 00:04:14]} {[%emt 00:00:29]} Ke5 {[%clk
00:03:42]} {[%emt 00:00:01]} 37. Qxg6 {[%clk 00:03:57]} {[%emt 00:00:46]} Nd2
{[%clk 00:03:17]} {[%emt 00:00:56]} 38. Qf5+ {[%clk 00:03:21]} {[%emt
00:01:05]} Kd6 {[%clk 00:03:46]} 39. Bc2 {[%clk 00:01:11]} {[%emt 00:02:41]}
Rf8 {[%clk 00:02:27]} {[%emt 00:01:49]} 40. Qxf8+ {[%clk 00:00:54]} {[%emt
00:00:46]} 1-0

[Event "FINAL CAMPEONATO ABSOLUTO DE AJEDREZ CHILE 2018"]
[Site "CENTRO CULTURAL LO PRADO, Chile"]
[Date "2018.03.02"]
[Round "10.5"]
[White "BARRIA ZUNIGA, Daniel"]
[Black "ABARCA GONZALEZ, Nicolas"]
[Result "1/2-1/2"]
[TimeControl "90 minutos mas 30 segundos de incremento por movida"]
[WhiteTitle "IM"]
[WhiteFideId "3400816"]
[WhiteElo "2395"]
[BlackElo "2388"]

1. Nf3 {[%clk 01:30:47]} {[%emt 00:00:12]} Nf6 {[%clk 01:29:47]} {[%emt
00:01:14]} 2. c4 {[%clk 01:30:46]} {[%emt 00:00:31]} e6 {[%clk 01:30:09]}
{[%emt 00:00:08]} 3. g3 {[%clk 01:30:25]} {[%emt 00:00:50]} b6 {[%clk
01:30:33]} {[%emt 00:00:07]} 4. Bg2 {[%clk 01:30:44]} {[%emt 00:00:09]} Bb7
{[%clk 01:31:01]} {[%emt 00:00:04]} 5. d4 {[%clk 01:28:55]} {[%emt 00:02:17]}
Bb4+ {[%clk 01:31:29]} {[%emt 00:00:03]} 6. Bd2 {[%clk 01:28:25]} {[%emt
00:00:59]} c5 {[%clk 01:31:57]} {[%emt 00:00:04]} 7. O-O {[%clk 01:26:21]}
{[%emt 00:02:31]} O-O {[%clk 01:32:21]} {[%emt 00:00:08]} 8. a3 {[%clk
01:25:47]} {[%emt 00:01:04]} Bxd2 {[%clk 01:32:42]} {[%emt 00:00:09]} 9. Qxd2
{[%clk 01:26:00]} {[%emt 00:00:17]} Nc6 {[%clk 01:26:06]} {[%emt 00:07:07]} 10.
dxc5 {[%clk 01:01:34]} {[%emt 00:24:56]} bxc5 {[%clk 01:25:47]} {[%emt
00:00:50]} 11. Nc3 {[%clk 01:00:50]} {[%emt 00:01:12]} Na5 {[%clk 01:23:42]}
{[%emt 00:02:36]} 12. Qf4 {[%clk 00:57:01]} {[%emt 00:04:17]} Ba6 {[%clk
01:22:38]} {[%emt 00:01:38]} 13. b4 {[%clk 00:55:06]} {[%emt 00:02:24]} Nxc4
{[%clk 01:08:07]} {[%emt 00:15:01]} 14. b5 {[%clk 00:54:56]} {[%emt 00:00:38]}
Bxb5 {[%clk 01:06:17]} {[%emt 00:02:21]} 15. Nxb5 {[%clk 00:54:08]} {[%emt
00:01:18]} d5 {[%clk 01:06:46]} {[%emt 00:00:02]} 16. Rfc1 {[%clk 00:46:46]}
{[%emt 00:07:51]} Rb8 {[%clk 00:58:16]} {[%emt 00:09:01]} 17. Nc3 {[%clk
00:46:54]} {[%emt 00:00:19]} Rb3 {[%clk 00:56:17]} {[%emt 00:02:30]} 18. Ne5
{[%emt 00:09:43]} 1/2-1/2

[Event "FINAL CAMPEONATO ABSOLUTO DE AJEDREZ CHILE 2018"]
[Site "CENTRO CULTURAL LO PRADO, Chile"]
[Date "2018.03.02"]
[Round "10.6"]
[White "DIAZ VILLAGRAN, Robert"]
[Black "GARCIA CARDENAS, Pablo"]
[Result "1/2-1/2"]
[TimeControl "90 minutos mas 30 segundos de incremento por movida"]
[WhiteTitle "FM"]
[BlackTitle "IM"]
[WhiteElo "2317"]
[BlackElo "2454"]

1. e4 {[%clk 01:29:18]} {[%emt 00:01:42]} c5 {[%clk 01:30:49]} {[%emt
00:00:12]} 2. c3 {[%clk 01:29:08]} {[%emt 00:00:40]} Nf6 {[%clk 01:31:11]}
{[%emt 00:00:08]} 3. e5 {[%clk 01:29:29]} {[%emt 00:00:09]} Nd5 {[%clk
01:31:35]} {[%emt 00:00:06]} 4. d4 {[%clk 01:29:56]} {[%emt 00:00:03]} cxd4
{[%clk 01:31:58]} {[%emt 00:00:06]} 5. Nf3 {[%clk 01:30:17]} {[%emt 00:00:09]}
Nc6 {[%clk 01:31:44]} {[%emt 00:00:45]} 6. Bc4 {[%clk 01:30:40]} {[%emt
00:00:06]} Nb6 {[%clk 01:31:11]} {[%emt 00:01:03]} 7. Bb3 {[%clk 01:31:05]}
{[%emt 00:00:05]} d5 {[%clk 01:31:31]} {[%emt 00:00:10]} 8. exd6 {[%clk
01:31:28]} {[%emt 00:00:08]} Qxd6 {[%clk 01:31:55]} {[%emt 00:00:06]} 9. O-O
{[%clk 01:31:46]} {[%emt 00:00:11]} Be6 {[%clk 01:30:26]} {[%emt 00:01:59]} 10.
Bxe6 {[%clk 01:30:20]} {[%emt 00:01:56]} Qxe6 {[%clk 01:30:49]} {[%emt
00:00:07]} 11. Nxd4 {[%clk 01:30:47]} {[%emt 00:00:03]} Nxd4 {[%clk 01:31:13]}
{[%emt 00:00:06]} 12. Qxd4 {[%clk 01:31:10]} {[%emt 00:00:06]} 1/2-1/2

[Event "FINAL CAMPEONATO ABSOLUTO DE AJEDREZ CHILE 2018"]
[Site "CENTRO CULTURAL LO PRADO, Chile"]
[Date "2018.03.03"]
[Round "11.1"]
[White "GARCIA CARDENAS, Pablo"]
[Black "LLORENS SEPULVEDA, Marcelo"]
[Result "1-0"]
[TimeControl "90 minutos mas 30 segundos de incremento por movida"]
[WhiteTitle "IM"]
[BlackTitle "FM"]
[WhiteElo "2454"]
[BlackElo "2266"]

1. d4 {[%clk 01:30:55]} {[%emt 00:00:04]} Nf6 {[%clk 01:28:23]} {[%emt
00:02:37]} 2. c4 {[%clk 01:31:20]} {[%emt 00:00:05]} g6 {[%clk 01:28:44]}
{[%emt 00:00:09]} 3. Nc3 {[%clk 01:31:45]} {[%emt 00:00:06]} Bg7 {[%clk
01:29:06]} {[%emt 00:00:07]} 4. e4 {[%clk 01:32:09]} {[%emt 00:00:06]} d6
{[%clk 01:29:30]} {[%emt 00:00:06]} 5. h3 {[%clk 01:32:34]} {[%emt 00:00:05]}
O-O {[%clk 01:29:50]} {[%emt 00:00:09]} 6. Be3 {[%clk 01:32:53]} {[%emt
00:00:11]} c6 {[%clk 01:25:36]} {[%emt 00:04:43]} 7. Nf3 {[%clk 01:24:13]}
{[%emt 00:09:11]} a6 {[%clk 01:25:02]} {[%emt 00:01:03]} 8. c5 {[%clk
01:21:07]} {[%emt 00:03:37]} b5 {[%clk 01:05:32]} {[%emt 00:20:00]} 9. cxb6
{[%clk 01:19:58]} {[%emt 00:01:39]} Qxb6 {[%clk 01:05:34]} {[%emt 00:00:28]} 10.
Qd2 {[%clk 01:09:31]} {[%emt 00:10:57]} Nbd7 {[%clk 01:02:24]} {[%emt
00:03:39]} 11. Bd3 {[%clk 01:07:12]} {[%emt 00:02:50]} a5 {[%clk 01:02:15]}
{[%emt 00:00:39]} 12. O-O {[%clk 01:03:38]} {[%emt 00:04:03]} Ba6 {[%clk
00:59:24]} {[%emt 00:03:22]} 13. e5 {[%clk 00:54:35]} {[%emt 00:09:34]} Nd5
{[%clk 00:56:15]} {[%emt 00:03:38]} 14. Nxd5 {[%clk 00:43:52]} {[%emt
00:11:13]} cxd5 {[%clk 00:56:24]} {[%emt 00:00:20]} 15. Bxa6 {[%clk 00:43:39]}
{[%emt 00:00:44]} Qxa6 {[%clk 00:54:12]} {[%emt 00:02:43]} 16. Bh6 {[%clk
00:39:48]} {[%emt 00:04:20]} dxe5 {[%clk 00:48:58]} {[%emt 00:05:43]} 17. dxe5
{[%clk 00:40:03]} {[%emt 00:00:15]} e6 {[%clk 00:49:18]} {[%emt 00:00:09]} 18.
Rfc1 {[%clk 00:36:23]} {[%emt 00:04:11]} Rac8 {[%clk 00:48:04]} {[%emt
00:01:44]} 19. Bxg7 {[%clk 00:32:58]} {[%emt 00:03:55]} Kxg7 {[%clk 00:48:18]}
{[%emt 00:00:15]} 20. b3 {[%clk 00:33:24]} {[%emt 00:00:05]} Qb6 {[%clk
00:41:05]} {[%emt 00:07:43]} 21. Qf4 {[%clk 00:22:43]} {[%emt 00:17:03]} Nc5
{[%clk 00:33:26]} {[%emt 00:02:16]} 22. Nh2 {[%clk 00:20:40]} {[%emt 00:02:33]}
Ne4 {[%clk 00:22:42]} {[%emt 00:11:13]} 23. Ng4 {[%clk 00:20:08]} {[%emt
00:01:03]} g5 {[%clk 00:22:33]} {[%emt 00:00:38]} 24. Qf3 {[%clk 00:19:10]}
{[%emt 00:01:28]} Qd4 {[%clk 00:22:09]} {[%emt 00:00:54]} 25. h4 {[%clk
00:12:16]} {[%emt 00:07:25]} h5 {[%clk 00:18:01]} {[%emt 00:04:37]} 26. Nf6
{[%clk 00:12:37]} {[%emt 00:00:10]} Nxf6 {[%clk 00:17:21]} {[%emt 00:01:09]} 27.
Qxf6+ {[%clk 00:13:02]} {[%emt 00:00:05]} Kh7 {[%clk 00:14:40]} {[%emt
00:03:10]} 28. hxg5 {[%clk 00:12:21]} {[%emt 00:01:12]} Kg8 {[%emt 00:02:09]}
1-0

[Event "FINAL CAMPEONATO ABSOLUTO DE AJEDREZ CHILE 2018"]
[Site "CENTRO CULTURAL LO PRADO, Chile"]
[Date "2018.03.03"]
[Round "11.3"]
[White "FUENTES PARRA, Victor Ignacio"]
[Black "BARRIA ZUNIGA, Daniel"]
[Result "0-1"]
[TimeControl "90 minutos mas 30 segundos de incremento por movida"]
[BlackTitle "IM"]
[BlackFideId "3400816"]
[WhiteElo "2148"]
[BlackElo "2395"]

1. e4 {[%clk 01:22:59]} {[%emt 00:08:00]} g6 {[%clk 01:29:56]} {[%emt
00:01:04]} 2. d4 {[%clk 01:23:24]} {[%emt 00:00:05]} Bg7 {[%clk 01:30:15]}
{[%emt 00:00:11]} 3. Nf3 {[%clk 01:23:50]} {[%emt 00:00:04]} c5 {[%clk
01:30:38]} {[%emt 00:00:06]} 4. c3 {[%clk 01:24:16]} {[%emt 00:00:05]} cxd4
{[%clk 01:30:58]} {[%emt 00:00:10]} 5. cxd4 {[%clk 01:24:42]} {[%emt 00:00:04]}
d5 {[%clk 01:31:22]} {[%emt 00:00:05]} 6. e5 {[%clk 01:25:09]} {[%emt
00:00:04]} Nc6 {[%clk 01:31:34]} {[%emt 00:00:17]} 7. Nc3 {[%clk 01:25:20]}
{[%emt 00:00:19]} Nh6 {[%clk 01:31:57]} {[%emt 00:00:06]} 8. Qb3 {[%clk
01:23:52]} {[%emt 00:01:59]} Nf5 {[%clk 01:29:22]} {[%emt 00:03:05]} 9. Bb5
{[%clk 01:11:37]} {[%emt 00:12:46]} O-O {[%clk 01:29:37]} {[%emt 00:00:13]} 10.
Bxc6 {[%clk 01:06:28]} {[%emt 00:05:41]} bxc6 {[%clk 01:29:50]} {[%emt
00:00:15]} 11. O-O {[%clk 01:06:11]} {[%emt 00:00:47]} e6 {[%clk 01:24:54]}
{[%emt 00:05:26]} 12. Bg5 {[%clk 00:59:20]} {[%emt 00:07:22]} Nxd4 {[%clk
01:24:00]} {[%emt 00:01:23]} 13. Nxd4 {[%clk 00:57:24]} {[%emt 00:02:27]} Qxg5
{[%clk 01:24:21]} {[%emt 00:00:08]} 14. Nf3 {[%clk 00:57:45]} {[%emt 00:00:10]}
Qe7 {[%clk 01:22:34]} {[%emt 00:02:15]} 15. Rac1 {[%clk 00:56:32]} {[%emt
00:01:45]} c5 {[%clk 01:19:20]} {[%emt 00:03:44]} 16. Qa3 {[%clk 00:51:28]}
{[%emt 00:05:35]} Bd7 {[%clk 01:18:54]} {[%emt 00:00:55]} 17. Na4 {[%clk
00:46:47]} {[%emt 00:05:11]} Bxa4 {[%clk 01:18:36]} {[%emt 00:00:47]} 18. Qxa4
{[%clk 00:47:15]} {[%emt 00:00:04]} Rfc8 {[%clk 01:18:49]} {[%emt 00:00:15]} 19.
Rc3 {[%clk 00:47:16]} {[%emt 00:00:30]} Qb7 {[%clk 01:15:12]} {[%emt 00:04:03]}
20. Rb3 {[%clk 00:45:57]} {[%emt 00:01:52]} Qc6 {[%clk 01:15:25]} {[%emt
00:00:14]} 21. Qf4 {[%clk 00:45:56]} {[%emt 00:00:35]} Rab8 {[%clk 01:14:56]}
{[%emt 00:00:58]} 22. Ra3 {[%clk 00:27:57]} {[%emt 00:18:31]} Rxb2 {[%clk
01:14:04]} {[%emt 00:01:21]} 23. Rxa7 {[%clk 00:27:45]} {[%emt 00:00:43]} Rb7
{[%clk 01:14:08]} {[%emt 00:00:25]} 24. Ra3 {[%clk 00:27:50]} {[%emt 00:00:25]}
Rb4 {[%clk 01:13:44]} {[%emt 00:00:53]} 25. Qd2 {[%clk 00:27:55]} {[%emt
00:00:25]} Ra4 {[%clk 01:07:34]} {[%emt 00:06:39]} 26. Rc3 {[%clk 00:27:52]}
{[%emt 00:00:35]} Qa6 {[%clk 01:07:04]} {[%emt 00:00:58]} 27. Rc2 {[%clk
00:27:56]} {[%emt 00:00:29]} Qa5 {[%clk 01:05:26]} {[%emt 00:02:07]} 28. Qg5
{[%clk 00:25:20]} {[%emt 00:03:07]} Rxa2 {[%clk 01:02:40]} {[%emt 00:03:16]} 29.
Rxa2 {[%clk 00:25:32]} {[%emt 00:00:19]} Qxa2 {[%clk 01:03:06]} {[%emt
00:00:04]} 30. h4 {[%clk 00:26:00]} {[%emt 00:00:01]} h6 {[%clk 01:00:28]}
{[%emt 00:03:07]} 31. Qe7 {[%clk 00:26:28]} {[%emt 00:00:02]} Qa5 {[%clk
00:59:33]} {[%emt 00:01:23]} 32. h5 {[%clk 00:26:56]} {[%emt 00:00:04]} g5
{[%clk 00:58:29]} {[%emt 00:01:34]} 33. Qb7 {[%clk 00:26:33]} {[%emt 00:00:53]}
Qc7 {[%clk 00:58:34]} {[%emt 00:00:25]} 34. Qb2 {[%clk 00:26:42]} {[%emt
00:00:22]} g4 {[%emt 00:02:30]} 0-1